fUST/lending_fUST_20250210
["ID","MTS","AMOUNT","RATE_DAILY","PERIOD"]
[352544724,1739159462568,-1000.0,0.00012818,2]
[352544725,1739159462578,-1000.63881708,0.00012862,2]
[352544726,1739159462588,-1003.21350288,0.00012874,2]
[352544727,1739159462598,-251.70775413,0.00012874,2]
[352544728,1739159462611,-1000.0,0.00012874,2]
[352544729,1739159462624,-1000.0,0.00012874,2]
[352544730,1739159462634,-500.0,0.00012876,2]
[352544731,1739159462643,-719.3,0.00012876,2]
[352544732,1739159462653,-1019.54,0.00012876,2]
[352544733,1739159462662,-732.17,0.00012876,2]
[352544734,1739159462673,-500.0,0.00012876,2]
[352544735,1739159462683,-500.0,0.00012876,2]
[352544736,1739159462693,-500.0,0.00012876,2]
[352544737,1739159462703,-733.41,0.00012876,2]
[352544738,1739159462715,-742.49,0.00012876,2]
[352544739,1739159462724,-500.0,0.00012876,2]
[352544740,1739159462733,-500.0,0.00012876,2]
[352544741,1739159462743,-500.0,0.00012876,2]
[352544742,1739159462752,-1187.85,0.00012876,2]
[352544743,1739159462762,-500.0,0.00012876,2]
[352544744,1739159462772,-500.0,0.00012876,2]
[352544745,1739159462782,-694.28,0.00012876,2]
[352544746,1739159462793,-500.0,0.00012876,2]
[352544747,1739159462803,-500.0,0.00012876,2]
[352544748,1739159462813,-705.99,0.00012876,2]
[352544749,1739159462822,-580.12,0.00012876,2]
[352544750,1739159462832,-500.0,0.00012876,2]
[352544751,1739159462841,-1920.71,0.00012876,2]
[352544752,1739159462853,-500.0,0.00012876,2]
[352544753,1739159462864,-646.69536164,0.00012876,2]
[352544754,1739159462874,-610.0,0.00012876,2]
[352544755,1739159462884,-1079.91,0.00012876,2]
[352544756,1739159462894,-323.92190154,0.00012876,2]
[352544757,1739159462905,-653.91,0.00012876,2]
[352544758,1739159462915,-501.46,0.00012876,2]
[352544759,1739159462924,-500.0,0.00012876,2]
[352544760,1739159462936,-3903.0,0.00012876,2]
[352544761,1739159462946,-3709.32,0.00012876,2]
[352544762,1739159462956,-3719.6,0.00012876,2]
[352544763,1739159462965,-871.83,0.00012876,2]
[352544764,1739159463059,-2055.74,0.00012876,2]
[352544765,1739159463071,-1325.55,0.00012876,2]
[352544766,1739159463081,-760.18,0.00012876,2]
[352544767,1739159463091,-650.97,0.00012876,2]
[352544768,1739159463104,-14163.79,0.00012876,2]
[352544769,1739159463114,-518.98,0.00012876,2]
[352544770,1739159463125,-151.0,0.00012876,2]
[352544771,1739159463135,-26907.86,0.00012876,2]
[352544772,1739159463146,-1618.92,0.00012876,2]
[352544773,1739159463158,-2005.94,0.00012876,2]
[352544774,1739159463169,-704.77,0.00012876,2]
[352544775,1739159463180,-1456.37,0.00012876,2]
[352544776,1739159463191,-779.8,0.00012876,2]
[352544777,1739159463202,-500.0,0.00012876,2]
[352544778,1739159463213,-1919.7,0.00012876,2]
[352544779,1739159463224,-824.44,0.00012876,2]
[352544780,1739159463234,-1614.34,0.00012876,2]
[352544781,1739159463244,-151.0,0.00012876,2]
[352544782,1739159463254,-500.0,0.00012876,2]
[352544783,1739159463265,-500.0,0.00012876,2]
[352544784,1739159463275,-500.0,0.00012876,2]
[352544785,1739159463286,-589.21,0.00012876,2]
[352544786,1739159463297,-1026.49,0.00012876,2]
[352544787,1739159463307,-500.0,0.00012876,2]
[352544788,1739159463318,-746.76,0.00012876,2]
[352544789,1739159463328,-655.27,0.00012876,2]
[352544790,1739159463339,-2053.08,0.00012876,2]
[352544791,1739159463350,-2692.2,0.00012876,2]
[352544792,1739159463362,-151.0,0.00012876,2]
[352544793,1739159463372,-1287.78,0.00012876,2]
[352544794,1739159463382,-1187.79,0.00012876,2]
[352544795,1739159463392,-732.99,0.00012876,2]
[352544796,1739159463403,-1242.99,0.00012876,2]
[352544797,1739159463413,-1000.7,0.00012876,2]
[352544798,1739159463423,-500.0,0.00012876,2]
[352544799,1739159463434,-500.0,0.00012876,2]
[352544800,1739159463444,-500.0,0.00012876,2]
[352544801,1739159463455,-521.05,0.00012876,2]
[352544802,1739159463464,-500.0,0.00012876,2]
[352544803,1739159463483,-790.31,0.00012876,2]
[352544804,1739159463494,-510.08,0.00012876,2]
[352544805,1739159463504,-1045.63,0.00012876,2]
[352544806,1739159463515,-937.96,0.00012876,2]
[352544807,1739159463525,-3052.88,0.00012876,2]
[352544808,1739159463536,-679.89,0.00012876,2]
[352544809,1739159463547,-500.0,0.00012876,2]
[352544810,1739159463559,-6790.26,0.00012876,2]
[352544811,1739159463569,-1017.48,0.00012876,2]
[352544812,1739159463579,-706.11,0.00012876,2]
[352544813,1739159463590,-3458.8,0.00012876,2]
[352544814,1739159463600,-500.0,0.00012876,2]
[352544815,1739159463615,-1500.0,0.00012894,2]
[352544816,1739159463627,-1000.0,0.00012894,2]
[352544817,1739159463641,-1007.88802541,0.00012894,2]
[352544818,1739159463651,-819.526347,0.000129,2]
[352544819,1739159463662,-819.526347,0.000129,2]
[352544820,1739159463673,-151.0,0.000129,2]
[352544821,1739159463684,-151.0,0.000129,2]
[352544822,1739159463695,-151.0,0.000129,2]
[352544823,1739159463706,-504.93731554,0.0001294,2]
[352544824,1739159463717,-860.60598572,0.0001294,2]
[352544825,1739159463727,-7438.69753278,0.00013,2]
[352544826,1739159463737,-23892.24353361,0.00013,2]
[352544827,1739159463750,-332.55886866,0.00013002,2]
[352544828,1739159463760,-587.46556329,0.00013013,2]
[352544829,1739159463771,-719.3,0.00013013,2]
[352544830,1739159463780,-1019.54,0.00013013,2]
[352544831,1739159463797,-732.17,0.00013013,2]
[352544832,1739159463807,-500.0,0.00013013,2]
[352544833,1739159463817,-500.0,0.00013013,2]
[352544834,1739159463828,-392.36085054,0.00013013,2]
[352544835,1739159463838,-733.41,0.00013013,2]
[352544836,1739159463849,-742.49,0.00013013,2]
[352544837,1739159463861,-500.0,0.00013013,2]
[352544838,1739159463871,-500.0,0.00013013,2]
[352544839,1739159463882,-500.0,0.00013013,2]
[352544840,1739159463893,-1187.85,0.00013013,2]
[352544841,1739159463904,-500.0,0.00013013,2]
[352544842,1739159463914,-500.0,0.00013013,2]
[352544843,1739159463924,-694.28,0.00013013,2]
[352544844,1739159463934,-500.0,0.00013013,2]
[352544845,1739159463944,-500.0,0.00013013,2]
[352544846,1739159463954,-705.99,0.00013013,2]
[352544847,1739159463964,-580.12,0.00013013,2]
[352544848,1739159463975,-500.0,0.00013013,2]
[352544849,1739159463986,-1920.71,0.00013013,2]
[352544850,1739159463996,-500.0,0.00013013,2]
[352544851,1739159464006,-610.0,0.00013013,2]
[352544852,1739159464017,-1079.91,0.00013013,2]
[352544853,1739159464027,-653.91,0.00013013,2]
[352544854,1739159464037,-501.46,0.00013013,2]
[352544855,1739159464046,-500.0,0.00013013,2]
[352544856,1739159464056,-151.0,0.00013013,2]
[352544857,1739159464066,-3903.0,0.00013013,2]
[352544858,1739159464077,-206.263594,0.00013013,2]
[352544859,1739159464087,-3709.32,0.00013013,2]
[352544860,1739159464097,-151.0,0.00013013,2]
[352544861,1739159464110,-3719.6,0.00013013,2]
[352544862,1739159464121,-871.83,0.00013013,2]
[352544863,1739159464133,-2055.74,0.00013013,2]
[352544864,1739159464144,-1325.55,0.00013013,2]
[352544865,1739159464155,-760.18,0.00013013,2]
[352544866,1739159464166,-650.97,0.00013013,2]
[352544867,1739159464176,-14163.79,0.00013013,2]
[352544868,1739159464186,-518.98,0.00013013,2]
[352544869,1739159464196,-26907.86,0.00013013,2]
[352544870,1739159464206,-1618.92,0.00013013,2]
[352544871,1739159464216,-2005.94,0.00013013,2]
[352544872,1739159464227,-704.77,0.00013013,2]
[352544873,1739159464303,-1456.37,0.00013013,2]
[352544874,1739159464315,-779.8,0.00013013,2]
[352544875,1739159464326,-500.0,0.00013013,2]
[352544876,1739159464337,-1919.7,0.00013013,2]
[352544877,1739159464348,-824.44,0.00013013,2]
[352544878,1739159464361,-1614.34,0.00013013,2]
[352544879,1739159464372,-500.0,0.00013013,2]
[352544880,1739159464382,-500.0,0.00013013,2]
[352544881,1739159464393,-500.0,0.00013013,2]
[352544882,1739159464402,-589.21,0.00013013,2]
[352544883,1739159464413,-1026.49,0.00013013,2]
[352544884,1739159464424,-500.0,0.00013013,2]
[352544885,1739159464435,-746.76,0.00013013,2]
[352544886,1739159464445,-655.27,0.00013013,2]
[352544887,1739159464456,-2053.08,0.00013013,2]
[352544888,1739159464467,-2692.2,0.00013013,2]
[352544889,1739159464477,-1287.78,0.00013013,2]
[352544890,1739159464487,-1187.79,0.00013013,2]
[352544891,1739159464499,-732.99,0.00013013,2]
[352544892,1739159464510,-1000.7,0.00013013,2]
[352544893,1739159464520,-1242.99,0.00013013,2]
[352544894,1739159464531,-479.52863686,0.00013013,2]
[352544895,1739159464541,-500.0,0.00013013,2]
[352544896,1739159464552,-500.0,0.00013013,2]
[352544897,1739159464562,-521.05,0.00013013,2]
[352544898,1739159464571,-500.0,0.00013013,2]
[352544899,1739159464581,-790.31,0.00013013,2]
[352544900,1739159464592,-151.0,0.00013013,2]
[352544901,1739159464603,-510.08,0.00013013,2]
[352544902,1739159464613,-1045.63,0.00013013,2]
[352544903,1739159464625,-937.96,0.00013013,2]
[352544904,1739159464636,-3052.88,0.00013013,2]
[352544905,1739159464646,-679.89,0.00013013,2]
[352544906,1739159464656,-500.0,0.00013013,2]
[352544907,1739159464666,-6790.26,0.00013013,2]
[352544908,1739159464676,-1017.48,0.00013013,2]
[352544909,1739159464685,-706.11,0.00013013,2]
[352544910,1739159464695,-3458.8,0.00013013,2]
[352544911,1739159464706,-500.0,0.00013013,2]
[352544912,1739159464716,-719.3,0.0001315,2]
[352544913,1739159464726,-1019.54,0.0001315,2]
[352544914,1739159464735,-732.17,0.0001315,2]
[352544915,1739159464744,-500.0,0.0001315,2]
[352544916,1739159464754,-500.0,0.0001315,2]
[352544917,1739159464763,-733.41,0.0001315,2]
[352544918,1739159464772,-742.49,0.0001315,2]
[352544919,1739159464783,-500.0,0.0001315,2]
[352544920,1739159464793,-168.66317829,0.0001315,2]
[352544921,1739159464802,-500.0,0.0001315,2]
[352544922,1739159464812,-1187.85,0.0001315,2]
[352544923,1739159464822,-500.0,0.0001315,2]
[352544924,1739159464831,-500.0,0.0001315,2]
[352544925,1739159464842,-694.28,0.0001315,2]
[352544926,1739159464851,-500.0,0.0001315,2]
[352544927,1739159464862,-200.41769513,0.0001315,2]
[352544928,1739159464871,-705.99,0.0001315,2]
[352544929,1739159464880,-580.12,0.0001315,2]
[352544930,1739159464889,-500.0,0.0001315,2]
[352544931,1739159464899,-1920.71,0.0001315,2]
[352544932,1739159464908,-500.0,0.0001315,2]
[352544933,1739159464917,-610.0,0.0001315,2]
[352544934,1739159464927,-1079.91,0.0001315,2]
[352544935,1739159464936,-653.91,0.0001315,2]
[352544936,1739159464945,-501.46,0.0001315,2]
[352544937,1739159464954,-500.0,0.0001315,2]
[352544938,1739159464964,-3903.0,0.0001315,2]
[352544939,1739159464974,-3709.32,0.0001315,2]
[352544940,1739159464983,-151.0,0.0001315,2]
[352544941,1739159464994,-3719.6,0.0001315,2]
[352544942,1739159465003,-871.83,0.0001315,2]
[352544943,1739159465013,-2055.74,0.0001315,2]
[352544944,1739159465023,-1325.55,0.0001315,2]
[352544945,1739159465032,-760.18,0.0001315,2]
[352544946,1739159465043,-650.97,0.0001315,2]
[352544947,1739159465054,-14163.79,0.0001315,2]
[352544948,1739159465064,-26907.86,0.0001315,2]
[352544949,1739159465076,-1618.92,0.0001315,2]
[352544950,1739159465086,-2005.94,0.0001315,2]
[352544951,1739159465097,-704.77,0.0001315,2]
[352544952,1739159465109,-1456.37,0.0001315,2]
[352544953,1739159465121,-779.8,0.0001315,2]
[352544954,1739159465133,-500.0,0.0001315,2]
[352544955,1739159465143,-1919.7,0.0001315,2]
[352544956,1739159465155,-824.44,0.0001315,2]
[352544957,1739159465165,-1614.34,0.0001315,2]
[352544958,1739159465173,-500.0,0.0001315,2]
[352544959,1739159465182,-500.0,0.0001315,2]
[352544960,1739159465192,-480.24814645,0.0001315,2]
[352544961,1739159465202,-589.21,0.0001315,2]
[352544962,1739159465213,-1026.49,0.0001315,2]
[352544963,1739159465223,-500.0,0.0001315,2]
[352544964,1739159465234,-746.76,0.0001315,2]
[352544965,1739159465245,-655.27,0.0001315,2]
[352544966,1739159465256,-2053.08,0.0001315,2]
[352544967,1739159465266,-2692.2,0.0001315,2]
[352544968,1739159465277,-151.0,0.0001315,2]
[352544969,1739159465287,-1287.78,0.0001315,2]
[352544970,1739159465298,-1187.79,0.0001315,2]
[352544971,1739159465308,-732.99,0.0001315,2]
[352544972,1739159465318,-1000.7,0.0001315,2]
[352544973,1739159465393,-1242.99,0.0001315,2]
[352544974,1739159465404,-500.0,0.0001315,2]
[352544975,1739159465414,-500.0,0.0001315,2]
[352544976,1739159465424,-521.05,0.0001315,2]
[352544977,1739159465436,-265.01161138,0.0001315,2]
[352544978,1739159465447,-790.31,0.0001315,2]
[352544979,1739159465456,-510.08,0.0001315,2]
[352544980,1739159465466,-1045.63,0.0001315,2]
[352544981,1739159465477,-937.96,0.0001315,2]
[352544982,1739159465487,-3052.88,0.0001315,2]
[352544983,1739159465497,-679.89,0.0001315,2]
[352544984,1739159465507,-500.0,0.0001315,2]
[352544985,1739159465517,-6790.26,0.0001315,2]
[352544986,1739159465527,-1017.48,0.0001315,2]
[352544987,1739159465536,-706.11,0.0001315,2]
[352544988,1739159465546,-3458.8,0.0001315,2]
[352544989,1739159465556,-505.75463293,0.0001315,2]
[352544990,1739159465566,-2000.0,0.00013168,2]
[352544991,1739159465576,-587.0,0.00013231,2]
[352544992,1739159465586,-9026.06837269,0.00013287,5]
[352544993,1739159465596,-719.3,0.00013287,2]
[352544994,1739159465610,-1019.54,0.00013287,2]
[352544995,1739159465620,-732.17,0.00013287,2]
[352544996,1739159465630,-500.0,0.00013287,2]
[352544997,1739159465644,-500.0,0.00013287,2]
[352544998,1739159465653,-733.41,0.00013287,2]
[352544999,1739159465663,-742.49,0.00013287,2]
[352545000,1739159465673,-500.0,0.00013287,2]
[352545001,1739159465684,-242.393924,0.00013287,2]
[352545002,1739159465694,-500.0,0.00013287,2]
[352545003,1739159465703,-151.0,0.00013287,2]
[352545004,1739159465715,-1187.85,0.00013287,2]
[352545005,1739159465726,-500.0,0.00013287,2]
[352545006,1739159465736,-546.78943482,0.00013287,2]
[352545007,1739159465746,-694.28,0.00013287,2]
[352545008,1739159465756,-500.0,0.00013287,2]
[352545009,1739159465767,-705.99,0.00013287,2]
[352545010,1739159465776,-191.472735,0.00013287,2]
[352545011,1739159465786,-215.811479,0.00013287,2]
[352545012,1739159465796,-580.12,0.00013287,2]
[352545013,1739159465806,-215.811479,0.00013287,2]
[352545014,1739159465815,-500.0,0.00013287,2]
[352545015,1739159465824,-1920.71,0.00013287,2]
[352545016,1739159465834,-500.0,0.00013287,2]
[352545017,1739159465843,-409.255933,0.00013287,2]
[352545018,1739159465855,-409.255933,0.00013287,2]
[352545019,1739159465865,-610.0,0.00013287,2]
[352545020,1739159465883,-1079.91,0.00013287,2]
[352545021,1739159465899,-653.91,0.00013287,2]
[352545022,1739159465919,-501.46,0.00013287,2]
[352545023,1739159465939,-551.9984504,0.00013287,2]
[352545024,1739159465957,-3903.0,0.00013287,2]
[352545025,1739159465975,-3709.32,0.00013287,2]
[352545026,1739159465991,-3719.6,0.00013287,2]
[352545027,1739159466008,-871.83,0.00013287,2]
[352545028,1739159466028,-2055.74,0.00013287,2]
[352545029,1739159466048,-1325.55,0.00013287,2]
[352545030,1739159466063,-760.18,0.00013287,2]
[352545031,1739159466081,-650.97,0.00013287,2]
[352545032,1739159466097,-14163.79,0.00013287,2]
[352545033,1739159466114,-26907.86,0.00013287,2]
[352545034,1739159466127,-1618.92,0.00013287,2]
[352545035,1739159466143,-2005.94,0.00013287,2]
[352545036,1739159466157,-704.77,0.00013287,2]
[352545037,1739159466173,-1456.37,0.00013287,2]
[352545038,1739159466188,-779.8,0.00013287,2]
[352545039,1739159466203,-500.0,0.00013287,2]
[352545040,1739159466218,-1919.7,0.00013287,2]
[352545041,1739159466233,-824.44,0.00013287,2]
[352545042,1739159466249,-1614.34,0.00013287,2]
[352545043,1739159466265,-500.0,0.00013287,2]
[352545044,1739159466281,-500.0,0.00013287,2]
[352545045,1739159466297,-589.21,0.00013287,2]
[352545046,1739159466311,-1026.49,0.00013287,2]
[352545047,1739159466327,-500.0,0.00013287,2]
[352545048,1739159466342,-746.76,0.00013287,2]
[352545049,1739159466357,-655.27,0.00013287,2]
[352545050,1739159466373,-2053.08,0.00013287,2]
[352545051,1739159466389,-2692.2,0.00013287,2]
[352545052,1739159466404,-1287.78,0.00013287,2]
[352545053,1739159466419,-1187.79,0.00013287,2]
[352545054,1739159466434,-732.99,0.00013287,2]
[352545055,1739159466449,-1000.7,0.00013287,2]
[352545056,1739159466464,-1242.99,0.00013287,2]
[352545057,1739159466480,-500.0,0.00013287,2]
[352545058,1739159466495,-500.0,0.00013287,2]
[352545059,1739159466510,-521.05,0.00013287,2]
[352545060,1739159466526,-790.31,0.00013287,2]
[352545061,1739159466541,-510.08,0.00013287,2]
[352545062,1739159466556,-1045.63,0.00013287,2]
[352545063,1739159466573,-937.96,0.00013287,2]
[352545064,1739159466592,-3052.88,0.00013287,2]
[352545065,1739159466686,-679.89,0.00013287,2]
[352545066,1739159466710,-500.0,0.00013287,2]
[352545067,1739159466719,-6790.26,0.00013287,2]
[352545068,1739159466729,-1017.48,0.00013287,2]
[352545069,1739159466738,-706.11,0.00013287,2]
[352545070,1739159466748,-3458.8,0.00013287,2]
[352545071,1739159466757,-151.01526129,0.00013368,2]
[352545072,1739159466767,-700.0,0.00013385,2]
[352545073,1739159466778,-35757.78054597,0.00013424,5]
[352545074,1739159466787,-719.3,0.00013424,2]
[352545075,1739159466797,-1019.54,0.00013424,2]
[352545076,1739159466809,-732.17,0.00013424,2]
[352545077,1739159466819,-500.0,0.00013424,2]
[352545078,1739159466828,-500.0,0.00013424,2]
[352545079,1739159466838,-733.41,0.00013424,2]
[352545080,1739159466848,-742.49,0.00013424,2]
[352545081,1739159466858,-500.0,0.00013424,2]
[352545082,1739159466867,-500.0,0.00013424,2]
[352545083,1739159466876,-1187.85,0.00013424,2]
[352545084,1739159466886,-500.0,0.00013424,2]
[352545085,1739159466895,-694.28,0.00013424,2]
[352545086,1739159466905,-500.0,0.00013424,2]
[352545087,1739159466915,-705.99,0.00013424,2]
[352545088,1739159466926,-580.12,0.00013424,2]
[352545089,1739159466935,-500.0,0.00013424,2]
[352545090,1739159466945,-1920.71,0.00013424,2]
[352545091,1739159466956,-500.0,0.00013424,2]
[352545092,1739159466966,-610.0,0.00013424,2]
[352545093,1739159466976,-1079.91,0.00013424,2]
[352545094,1739159466986,-653.91,0.00013424,2]
[352545095,1739159466995,-501.46,0.00013424,2]
[352545096,1739159467005,-3903.0,0.00013424,2]
[352545097,1739159467015,-3709.32,0.00013424,2]
[352545098,1739159467025,-3719.6,0.00013424,2]
[352545099,1739159467034,-871.83,0.00013424,2]
[352545100,1739159467044,-2055.74,0.00013424,2]
[352545101,1739159467054,-1325.55,0.00013424,2]
[352545102,1739159467064,-760.18,0.00013424,2]
[352545103,1739159467073,-650.97,0.00013424,2]
[352545104,1739159467083,-14163.79,0.00013424,2]
[352545105,1739159467093,-153.742303,0.00013424,2]
[352545106,1739159467103,-26907.86,0.00013424,2]
[352545107,1739159467113,-1618.92,0.00013424,2]
[352545108,1739159467123,-2005.94,0.00013424,2]
[352545109,1739159467132,-704.77,0.00013424,2]
[352545110,1739159467142,-1456.37,0.00013424,2]
[352545111,1739159467152,-779.8,0.00013424,2]
[352545112,1739159467161,-500.0,0.00013424,2]
[352545113,1739159467171,-1919.7,0.00013424,2]
[352545114,1739159467181,-824.44,0.00013424,2]
[352545115,1739159467190,-1614.34,0.00013424,2]
[352545116,1739159467200,-154.051216,0.00013424,2]
[352545117,1739159467210,-596.01524834,0.00013424,2]
[352545118,1739159467220,-500.0,0.00013424,2]
[352545119,1739159467231,-589.21,0.00013424,2]
[352545120,1739159467241,-1026.49,0.00013424,2]
[352545121,1739159467251,-500.0,0.00013424,2]
[352545122,1739159467261,-746.76,0.00013424,2]
[352545123,1739159467271,-655.27,0.00013424,2]
[352545124,1739159467280,-2053.08,0.00013424,2]
[352545125,1739159467290,-2692.2,0.00013424,2]
[352545126,1739159467300,-151.0,0.00013424,2]
[352545127,1739159467309,-1287.78,0.00013424,2]
[352545128,1739159467319,-1187.79,0.00013424,2]
[352545129,1739159467329,-732.99,0.00013424,2]
[352545130,1739159467338,-1000.7,0.00013424,2]
[352545131,1739159467348,-1242.99,0.00013424,2]
[352545132,1739159467359,-500.0,0.00013424,2]
[352545133,1739159467369,-500.0,0.00013424,2]
[352545134,1739159467379,-521.05,0.00013424,2]
[352545135,1739159467388,-790.31,0.00013424,2]
[352545136,1739159467397,-151.0,0.00013424,2]
[352545137,1739159467407,-510.08,0.00013424,2]
[352545138,1739159467417,-1045.63,0.00013424,2]
[352545139,1739159467428,-937.96,0.00013424,2]
[352545140,1739159467440,-3052.88,0.00013424,2]
[352545141,1739159467451,-679.89,0.00013424,2]
[352545142,1739159467461,-500.0,0.00013424,2]
[352545143,1739159467471,-6790.26,0.00013424,2]
[352545144,1739159467483,-1017.48,0.00013424,2]
[352545145,1739159467493,-706.11,0.00013424,2]
[352545146,1739159467502,-3458.8,0.00013424,2]
[352545147,1739159467513,-2500.0,0.00013442,2]
[352545148,1739159467522,-719.3,0.00013561,2]
[352545149,1739159467533,-1019.54,0.00013561,2]
[352545150,1739159467543,-732.17,0.00013561,2]
[352545151,1739159467553,-542.40963216,0.00013561,2]
[352545152,1739159467562,-426.0003243,0.00013561,2]
[352545153,1739159467572,-733.41,0.00013561,2]
[352545154,1739159467582,-742.49,0.00013561,2]
[352545155,1739159467591,-196.162575,0.00013561,2]
[352545156,1739159467607,-500.0,0.00013561,2]
[352545157,1739159467619,-1187.85,0.00013561,2]
[352545158,1739159467628,-500.0,0.00013561,2]
[352545159,1739159467643,-694.28,0.00013561,2]
[352545160,1739159467652,-500.0,0.00013561,2]
[352545161,1739159467662,-705.99,0.00013561,2]
[352545162,1739159467673,-580.12,0.00013561,2]
[352545163,1739159467682,-529.19907979,0.00013561,2]
[352545164,1739159467692,-1920.71,0.00013561,2]
[352545165,1739159467702,-819.526347,0.00013561,2]
[352545166,1739159467723,-819.526347,0.00013561,2]
[352545167,1739159467733,-500.0,0.00013561,2]
[352545168,1739159467743,-151.0,0.00013561,2]
[352545169,1739159467752,-151.0,0.00013561,2]
[352545170,1739159467761,-610.0,0.00013561,2]
[352545171,1739159467830,-151.0,0.00013561,2]
[352545172,1739159467841,-1079.91,0.00013561,2]
[352545173,1739159467851,-653.91,0.00013561,2]
[352545174,1739159467862,-501.46,0.00013561,2]
[352545175,1739159467871,-151.0,0.00013561,2]
[352545176,1739159467881,-3903.0,0.00013561,2]
[352545177,1739159467890,-151.280243,0.00013561,2]
[352545178,1739159467900,-3709.32,0.00013561,2]
[352545179,1739159467910,-3719.6,0.00013561,2]
[352545180,1739159467919,-871.83,0.00013561,2]
[352545181,1739159467928,-2055.74,0.00013561,2]
[352545182,1739159467939,-1325.55,0.00013561,2]
[352545183,1739159467948,-760.18,0.00013561,2]
[352545184,1739159467957,-650.97,0.00013561,2]
[352545185,1739159467967,-14163.79,0.00013561,2]
[352545186,1739159467976,-26907.86,0.00013561,2]
[352545187,1739159467985,-1618.92,0.00013561,2]
[352545188,1739159467995,-2005.94,0.00013561,2]
[352545189,1739159468005,-704.77,0.00013561,2]
[352545190,1739159468014,-1456.37,0.00013561,2]
[352545191,1739159468024,-779.8,0.00013561,2]
[352545192,1739159468034,-500.0,0.00013561,2]
[352545193,1739159468044,-1919.7,0.00013561,2]
[352545194,1739159468053,-824.44,0.00013561,2]
[352545195,1739159468063,-1614.34,0.00013561,2]
[352545196,1739159468072,-500.0,0.00013561,2]
[352545197,1739159468082,-589.21,0.00013561,2]
[352545198,1739159468091,-1026.49,0.00013561,2]
[352545199,1739159468102,-494.65998487,0.00013561,2]
[352545200,1739159468116,-746.76,0.00013561,2]
[352545201,1739159468127,-655.27,0.00013561,2]
[352545202,1739159468137,-2053.08,0.00013561,2]
[352545203,1739159468147,-2692.2,0.00013561,2]
[352545204,1739159468157,-151.0,0.00013561,2]
[352545205,1739159468167,-1287.78,0.00013561,2]
[352545206,1739159468176,-1187.79,0.00013561,2]
[352545207,1739159468186,-732.99,0.00013561,2]
[352545208,1739159468196,-1000.7,0.00013561,2]
[352545209,1739159468206,-1242.99,0.00013561,2]
[352545210,1739159468216,-506.65904746,0.00013561,2]
[352545211,1739159468226,-500.0,0.00013561,2]
[352545212,1739159468236,-521.05,0.00013561,2]
[352545213,1739159468245,-790.31,0.00013561,2]
[352545214,1739159468255,-510.08,0.00013561,2]
[352545215,1739159468265,-1045.63,0.00013561,2]
[352545216,1739159468275,-937.96,0.00013561,2]
[352545217,1739159468285,-3052.88,0.00013561,2]
[352545218,1739159468294,-679.89,0.00013561,2]
[352545219,1739159468303,-500.0,0.00013561,2]
[352545220,1739159468312,-6790.26,0.00013561,2]
[352545221,1739159468322,-1017.48,0.00013561,2]
[352545222,1739159468331,-706.11,0.00013561,2]
[352545223,1739159468340,-3458.8,0.00013561,2]